[Event "Titled Tuesday Blitz June 07 Late 2022"]
[White "Ferreira, Vitor Hugo Vieira"]
[Black "Pakleza, Zbigniew"]
[WhiteFideId "2119765"]
[BlackFideId "1119290"]
[WhiteElo "2165"]
[BlackElo "2467"]
[Result "0-1"]
[Round "02"]
[TimeControl "180+1"]
[Date "2022.06.07"]
[WhiteClock "0:00:10"]
[BlackClock "0:00:06"]

1. d4 {[%clk 0:03:00]}  d6 {[%clk 0:02:59]} 2. e4 {[%clk 0:03:00]}  Nf6 {[%clk 0:03:00]} 3. Nc3 {[%clk 0:03:00]}  c6 {[%clk 0:03:00]} 4. Nf3 {[%clk 0:03:00]}  Bg4 {[%clk 0:03:00]} 5. Be2 {[%clk 0:03:00]}  e6 {[%clk 0:02:59]} 6. O-O {[%clk 0:03:00]}  Be7 {[%clk 0:02:59]} 7. Be3 {[%clk 0:02:58]}  d5 {[%clk 0:02:59]} 8. h3 {[%clk 0:02:49]}  Bh5 {[%clk 0:02:59]} 9. e5 {[%clk 0:02:47]}  Nfd7 {[%clk 0:02:59]} 10. Nd2 {[%clk 0:02:45]}  Bg6 {[%clk 0:02:52]} 11. f4 {[%clk 0:02:41]}  c5 {[%clk 0:02:53]} 12. Nf3 {[%clk 0:02:41]}  Nc6 {[%clk 0:02:52]} 13. a3 {[%clk 0:02:37]}  O-O {[%clk 0:02:52]} 14. Kh1 {[%clk 0:02:35]}  Rc8 {[%clk 0:02:51]} 15. dxc5 {[%clk 0:02:29]}  Nxc5 {[%clk 0:02:49]} 16. Nd4 {[%clk 0:02:27]}  a6 {[%clk 0:02:27]} 17. Qd2 {[%clk 0:02:18]}  Nxd4 {[%clk 0:02:10]} 18. Bxd4 {[%clk 0:02:17]}  Ne4 {[%clk 0:02:08]} 19. Nxe4 {[%clk 0:02:16]}  Bxe4 {[%clk 0:02:09]} 20. Bd3 {[%clk 0:02:13]}  Bxd3 {[%clk 0:02:03]} 21. cxd3 {[%clk 0:02:12]}  Qd7 {[%clk 0:01:52]} 22. Rf3 {[%clk 0:02:05]}  Rc6 {[%clk 0:01:42]} 23. Raf1 {[%clk 0:02:04]}  g6 {[%clk 0:01:39]} 24. f5 {[%clk 0:01:44]}  exf5 {[%clk 0:01:34]} 25. Qh6 {[%clk 0:01:44]}  Bc5 {[%clk 0:01:20]} 26. Bxc5 {[%clk 0:01:26]}  Rxc5 {[%clk 0:01:21]} 27. d4 {[%clk 0:01:17]}  Rc6 {[%clk 0:01:16]} 28. Qg5 {[%clk 0:01:11]}  Kh8 {[%clk 0:01:00]} 29. h4 {[%clk 0:01:01]}  Qd8 {[%clk 0:00:55]} 30. Qh6 {[%clk 0:00:58]}  Rg8 {[%clk 0:00:43]} 31. Rh3 {[%clk 0:00:56]}  Qf8 {[%clk 0:00:40]} 32. Qg5 {[%clk 0:00:50]}  f6 {[%clk 0:00:29]} 33. Qf4 {[%clk 0:00:43]}  fxe5 {[%clk 0:00:16]} 34. Qxe5+ {[%clk 0:00:43]}  Qf6 {[%clk 0:00:17]} 35. Qxd5 {[%clk 0:00:43]}  Rd8 {[%clk 0:00:17]} 36. Qb3 {[%clk 0:00:39]}  Rb6 {[%clk 0:00:17]} 37. Qc3 {[%clk 0:00:36]}  Rxd4 {[%clk 0:00:08]} 38. h5 {[%clk 0:00:33]}  Rc6 {[%clk 0:00:06]} 39. Qe3 {[%clk 0:00:29]}  Re4 {[%clk 0:00:06]} 40. Qxe4 {[%clk 0:00:28]}  fxe4 {[%clk 0:00:05]} 41. Rxf6 {[%clk 0:00:28]}  Rxf6 {[%clk 0:00:06]} 42. Re3 {[%clk 0:00:27]}  Re6 {[%clk 0:00:05]} 43. h6 {[%clk 0:00:27]}  Kg8 {[%clk 0:00:05]} 44. Kh2 {[%clk 0:00:28]}  Kf7 {[%clk 0:00:06]} 45. Kg3 {[%clk 0:00:28]}  g5 {[%clk 0:00:06]} 46. Kg4 {[%clk 0:00:29]}  Kg6 {[%clk 0:00:07]} 47. b4 {[%clk 0:00:27]}  Re5 {[%clk 0:00:06]} 48. Kg3 {[%clk 0:00:23]}  Kxh6 {[%clk 0:00:07]} 49. Kf2 {[%clk 0:00:22]}  Kg6 {[%clk 0:00:08]} 50. Rc3 {[%clk 0:00:23]}  Re7 {[%clk 0:00:07]} 51. Rc8 {[%clk 0:00:22]}  h5 {[%clk 0:00:07]} 52. Ke3 {[%clk 0:00:22]}  h4 {[%clk 0:00:07]} 53. Rg8+ {[%clk 0:00:22]}  Kf5 {[%clk 0:00:08]} 54. Rf8+ {[%clk 0:00:23]}  Kg4 {[%clk 0:00:08]} 55. Rg8 {[%clk 0:00:23]}  Re5 {[%clk 0:00:08]} 56. Rg7 {[%clk 0:00:23]}  b5 {[%clk 0:00:08]} 57. Rg6 {[%clk 0:00:24]}  Kg3 {[%clk 0:00:07]} 58. Kd4 {[%clk 0:00:22]}  e3 {[%clk 0:00:06]} 59. Kxe5 {[%clk 0:00:20]}  e2 {[%clk 0:00:07]} 60. Rxg5+ {[%clk 0:00:20]}  Kh2 {[%clk 0:00:06]} 61. Kf4 {[%clk 0:00:09]}  e1=Q {[%clk 0:00:07]} 62. Re5 {[%clk 0:00:10]}  Qg3+ {[%clk 0:00:07]} 63. Kf5 {[%clk 0:00:10]}  Qxe5+ {[%clk 0:00:06]} 0-1


[Site "https://www.chess.com"]

[Event "Titled Tuesday Blitz June 07 Late 2022"]
[White "Gascon Del Nogal, Jose Rafael"]
[Black "Andreikin, Dmitry"]
[WhiteFideId "3902463"]
[BlackFideId "4158814"]
[WhiteElo "2473"]
[BlackElo "2736"]
[Result "0-1"]
[Round "02"]
[TimeControl "180+1"]
[Date "2022.06.07"]
[WhiteClock "0:00:04"]
[BlackClock "0:00:50"]

1. c4 {[%clk 0:03:00]}  e5 {[%clk 0:02:58]} 2. Nc3 {[%clk 0:03:00]}  d6 {[%clk 0:02:59]} 3. g3 {[%clk 0:02:59]}  c6 {[%clk 0:02:56]} 4. Bg2 {[%clk 0:02:58]}  g6 {[%clk 0:02:56]} 5. d4 {[%clk 0:02:57]}  Bg7 {[%clk 0:02:54]} 6. dxe5 {[%clk 0:02:56]}  dxe5 {[%clk 0:02:55]} 7. Qxd8+ {[%clk 0:02:49]}  Kxd8 {[%clk 0:02:56]} 8. Nf3 {[%clk 0:02:48]}  h6 {[%clk 0:02:54]} 9. Ne4 {[%clk 0:02:36]}  Kc7 {[%clk 0:02:52]} 10. c5 {[%clk 0:02:04]}  Na6 {[%clk 0:02:52]} 11. Be3 {[%clk 0:01:57]}  Be6 {[%clk 0:02:51]} 12. O-O {[%clk 0:01:52]}  Ne7 {[%clk 0:02:47]} 13. a3 {[%clk 0:01:44]}  Nd5 {[%clk 0:02:40]} 14. b4 {[%clk 0:01:34]}  Nxe3 {[%clk 0:02:36]} 15. fxe3 {[%clk 0:01:33]}  Rad8 {[%clk 0:02:30]} 16. Rad1 {[%clk 0:01:31]}  b6 {[%clk 0:02:10]} 17. cxb6+ {[%clk 0:01:29]}  axb6 {[%clk 0:02:09]} 18. Rc1 {[%clk 0:01:27]}  Nb8 {[%clk 0:02:07]} 19. Nc3 {[%clk 0:01:25]}  Bc4 {[%clk 0:01:58]} 20. a4 {[%clk 0:01:16]}  Rhe8 {[%clk 0:01:48]} 21. b5 {[%clk 0:01:08]}  e4 {[%clk 0:01:41]} 22. Nd4 {[%clk 0:01:04]}  c5 {[%clk 0:01:39]} 23. Nc6 {[%clk 0:01:01]}  Nxc6 {[%clk 0:01:32]} 24. bxc6 {[%clk 0:01:02]}  f5 {[%clk 0:01:24]} 25. a5 {[%clk 0:00:51]}  b5 {[%clk 0:01:19]} 26. g4 {[%clk 0:00:43]}  Bxc3 {[%clk 0:01:03]} 27. Rxc3 {[%clk 0:00:43]}  Bxe2 {[%clk 0:01:04]} 28. Re1 {[%clk 0:00:27]}  Bc4 {[%clk 0:01:03]} 29. Rc2 {[%clk 0:00:08]}  Kxc6 {[%clk 0:00:59]} 30. Rf2 {[%clk 0:00:08]}  fxg4 {[%clk 0:00:56]} 31. Rf6+ {[%clk 0:00:07]}  Rd6 {[%clk 0:00:55]} 32. Rf4 {[%clk 0:00:07]}  Bd3 {[%clk 0:00:54]} 33. Rd1 {[%clk 0:00:06]}  c4 {[%clk 0:00:53]} 34. Rxg4 {[%clk 0:00:04]}  b4 {[%clk 0:00:50]} 0-1


[Site "https://www.chess.com"]

[Event "Titled Tuesday Blitz June 07 Late 2022"]
[White "Grigoriants, Sergey"]
[Black "Guz, Ari"]
[WhiteFideId "4130804"]
[BlackFideId "2825759"]
[WhiteElo "2502"]
[BlackElo "1913"]
[Result "1-0"]
[Round "02"]
[TimeControl "180+1"]
[Date "2022.06.07"]
[WhiteClock "0:01:34"]
[BlackClock "0:00:39"]

1. e4 {[%clk 0:02:55]}  c5 {[%clk 0:02:58]} 2. Nf3 {[%clk 0:02:54]}  e6 {[%clk 0:02:58]} 3. d4 {[%clk 0:02:53]}  cxd4 {[%clk 0:02:59]} 4. Nxd4 {[%clk 0:02:54]}  a6 {[%clk 0:03:00]} 5. c4 {[%clk 0:02:54]}  Nf6 {[%clk 0:02:59]} 6. Nc3 {[%clk 0:02:54]}  Qc7 {[%clk 0:02:58]} 7. a3 {[%clk 0:02:47]}  Be7 {[%clk 0:02:54]} 8. Be2 {[%clk 0:02:45]}  O-O {[%clk 0:02:54]} 9. Be3 {[%clk 0:02:44]}  d6 {[%clk 0:02:54]} 10. O-O {[%clk 0:02:39]}  Nbd7 {[%clk 0:02:54]} 11. Qd2 {[%clk 0:02:38]}  b6 {[%clk 0:02:54]} 12. Rfc1 {[%clk 0:02:38]}  Bb7 {[%clk 0:02:53]} 13. f3 {[%clk 0:02:38]}  Rac8 {[%clk 0:02:53]} 14. b4 {[%clk 0:02:37]}  Qb8 {[%clk 0:02:53]} 15. Rab1 {[%clk 0:02:36]}  Bd8 {[%clk 0:02:51]} 16. Kh1 {[%clk 0:02:36]}  Bc7 {[%clk 0:02:51]} 17. Bg1 {[%clk 0:02:35]}  Rfd8 {[%clk 0:02:47]} 18. Qe1 {[%clk 0:02:34]}  Qa8 {[%clk 0:02:39]} 19. Nb3 {[%clk 0:02:33]}  d5 {[%clk 0:02:23]} 20. exd5 {[%clk 0:02:31]}  exd5 {[%clk 0:02:23]} 21. c5 {[%clk 0:02:32]}  Bf4 {[%clk 0:02:11]} 22. cxb6 {[%clk 0:02:16]}  Bxc1 {[%clk 0:02:08]} 23. Rxc1 {[%clk 0:02:17]}  Re8 {[%clk 0:01:46]} 24. Bd4 {[%clk 0:02:08]}  Re6 {[%clk 0:01:40]} 25. Qf2 {[%clk 0:02:06]}  Rce8 {[%clk 0:01:27]} 26. Na5 {[%clk 0:01:56]}  Nh5 {[%clk 0:01:16]} 27. Bf1 {[%clk 0:01:56]}  Nf4 {[%clk 0:01:02]} 28. g3 {[%clk 0:01:55]}  Ng6 {[%clk 0:01:01]} 29. Na4 {[%clk 0:01:50]}  Rc6 {[%clk 0:00:54]} 30. Nxc6 {[%clk 0:01:46]}  Bxc6 {[%clk 0:00:54]} 31. Nc3 {[%clk 0:01:43]}  Qb7 {[%clk 0:00:53]} 32. a4 {[%clk 0:01:41]}  Nf6 {[%clk 0:00:50]} 33. a5 {[%clk 0:01:40]}  Nd7 {[%clk 0:00:46]} 34. b5 {[%clk 0:01:34]}  axb5 {[%clk 0:00:46]} 35. Nxb5 {[%clk 0:01:35]}  Nde5 {[%clk 0:00:39]} 36. Nd6 {[%clk 0:01:34]} 1-0


[Site "https://www.chess.com"]

[Event "Titled Tuesday Blitz June 07 Late 2022"]
[White "Janaszak, Dawid"]
[Black "Mamedov, Rauf"]
[WhiteFideId "1119206"]
[BlackFideId "13401653"]
[WhiteElo "2199"]
[BlackElo "2666"]
[Result "0-1"]
[Round "02"]
[TimeControl "180+1"]
[Date "2022.06.07"]
[WhiteClock "0:00:05"]
[BlackClock "0:01:33"]

1. e4 {[%clk 0:03:00]}  e5 {[%clk 0:02:59]} 2. Nf3 {[%clk 0:03:00]}  d6 {[%clk 0:03:00]} 3. d4 {[%clk 0:02:59]}  exd4 {[%clk 0:03:01]} 4. Nxd4 {[%clk 0:02:59]}  Nf6 {[%clk 0:03:01]} 5. Nc3 {[%clk 0:02:59]}  g6 {[%clk 0:03:02]} 6. Bg5 {[%clk 0:02:58]}  Bg7 {[%clk 0:03:01]} 7. Qd2 {[%clk 0:02:56]}  h6 {[%clk 0:03:01]} 8. Bh4 {[%clk 0:02:53]}  Nc6 {[%clk 0:03:01]} 9. O-O-O {[%clk 0:02:45]}  Nxd4 {[%clk 0:02:59]} 10. Qxd4 {[%clk 0:02:45]}  g5 {[%clk 0:02:59]} 11. Bg3 {[%clk 0:02:35]}  Nh5 {[%clk 0:02:59]} 12. Qd2 {[%clk 0:02:26]}  Be6 {[%clk 0:02:48]} 13. Bb5+ {[%clk 0:02:19]}  c6 {[%clk 0:02:46]} 14. Be2 {[%clk 0:02:19]}  Nxg3 {[%clk 0:02:46]} 15. hxg3 {[%clk 0:02:19]}  Qa5 {[%clk 0:02:47]} 16. a3 {[%clk 0:01:32]}  O-O-O {[%clk 0:02:42]} 17. f4 {[%clk 0:01:23]}  b5 {[%clk 0:02:42]} 18. Nb1 {[%clk 0:01:08]}  Qb6 {[%clk 0:02:33]} 19. fxg5 {[%clk 0:00:58]}  hxg5 {[%clk 0:02:31]} 20. Qxg5 {[%clk 0:00:58]}  Be5 {[%clk 0:02:29]} 21. Rxh8 {[%clk 0:00:52]}  Rxh8 {[%clk 0:02:30]} 22. c3 {[%clk 0:00:47]}  Qf2 {[%clk 0:02:27]} 23. Bg4 {[%clk 0:00:38]}  Bxg3 {[%clk 0:02:09]} 24. Bxe6+ {[%clk 0:00:38]}  fxe6 {[%clk 0:02:10]} 25. Nd2 {[%clk 0:00:33]}  Bf4 {[%clk 0:01:52]} 26. Qg7 {[%clk 0:00:33]}  Rd8 {[%clk 0:01:47]} 27. Kc2 {[%clk 0:00:30]}  d5 {[%clk 0:01:40]} 28. e5 {[%clk 0:00:16]}  d4 {[%clk 0:01:38]} 29. Qg4 {[%clk 0:00:08]}  dxc3 {[%clk 0:01:35]} 30. Qxe6+ {[%clk 0:00:08]}  Kb8 {[%clk 0:01:35]} 31. bxc3 {[%clk 0:00:05]}  Rxd2+ {[%clk 0:01:35]} 32. Rxd2 {[%clk 0:00:05]}  Qxd2+ {[%clk 0:01:36]} 33. Kb3 {[%clk 0:00:05]}  Qd5+ {[%clk 0:01:33]} 0-1


[Site "https://www.chess.com"]

[Event "Titled Tuesday Blitz June 07 Late 2022"]
[White "Jobava, Baadur"]
[Black "Djokic, Mihailo"]
[WhiteFideId "13601520"]
[BlackFideId "976440"]
[WhiteElo "2617"]
[BlackElo "2255"]
[Result "1-0"]
[Round "02"]
[TimeControl "180+1"]
[Date "2022.06.07"]
[WhiteClock "0:01:36"]
[BlackClock "0:00:01"]

1. b3 {[%clk 0:02:57]}  e5 {[%clk 0:02:59]} 2. Bb2 {[%clk 0:02:56]}  Nc6 {[%clk 0:03:00]} 3. Nf3 {[%clk 0:02:57]}  e4 {[%clk 0:03:00]} 4. Nd4 {[%clk 0:02:57]}  d5 {[%clk 0:02:51]} 5. e3 {[%clk 0:02:54]}  Nf6 {[%clk 0:02:49]} 6. c4 {[%clk 0:02:54]}  Be7 {[%clk 0:02:40]} 7. Nxc6 {[%clk 0:02:51]}  bxc6 {[%clk 0:02:40]} 8. cxd5 {[%clk 0:02:52]}  cxd5 {[%clk 0:02:39]} 9. Bb5+ {[%clk 0:02:52]}  Bd7 {[%clk 0:02:38]} 10. Bxd7+ {[%clk 0:02:53]}  Qxd7 {[%clk 0:02:39]} 11. O-O {[%clk 0:02:53]}  O-O {[%clk 0:02:38]} 12. d3 {[%clk 0:02:54]}  Qe6 {[%clk 0:02:36]} 13. Nc3 {[%clk 0:02:51]}  Rfd8 {[%clk 0:02:35]} 14. Ne2 {[%clk 0:02:48]}  exd3 {[%clk 0:02:35]} 15. Qxd3 {[%clk 0:02:47]}  c5 {[%clk 0:02:23]} 16. Nf4 {[%clk 0:02:46]}  Qc6 {[%clk 0:02:13]} 17. Rac1 {[%clk 0:02:46]}  Rd7 {[%clk 0:02:00]} 18. Rfd1 {[%clk 0:02:44]}  Rad8 {[%clk 0:02:00]} 19. h3 {[%clk 0:02:44]}  h6 {[%clk 0:01:52]} 20. Qf5 {[%clk 0:02:44]}  Qb7 {[%clk 0:01:43]} 21. Bxf6 {[%clk 0:02:41]}  Bxf6 {[%clk 0:01:37]} 22. Rxc5 {[%clk 0:02:41]}  d4 {[%clk 0:01:33]} 23. exd4 {[%clk 0:02:42]}  Bxd4 {[%clk 0:01:31]} 24. Rxd4 {[%clk 0:02:25]}  Rxd4 {[%clk 0:01:31]} 25. Qe5 {[%clk 0:01:54]}  Qb8 {[%clk 0:01:05]} 26. Qxb8 {[%clk 0:01:51]}  Rxb8 {[%clk 0:01:04]} 27. g3 {[%clk 0:01:52]}  Rd2 {[%clk 0:00:45]} 28. Ra5 {[%clk 0:01:52]}  Rb7 {[%clk 0:00:44]} 29. h4 {[%clk 0:01:52]}  Rc7 {[%clk 0:00:43]} 30. Nh3 {[%clk 0:01:51]}  Rb2 {[%clk 0:00:38]} 31. Kg2 {[%clk 0:01:50]}  g6 {[%clk 0:00:38]} 32. Ra6 {[%clk 0:01:46]}  Kg7 {[%clk 0:00:37]} 33. g4 {[%clk 0:01:45]}  Rd7 {[%clk 0:00:34]} 34. g5 {[%clk 0:01:43]}  h5 {[%clk 0:00:30]} 35. Kg3 {[%clk 0:01:39]}  Rd3+ {[%clk 0:00:29]} 36. f3 {[%clk 0:01:39]}  Rd7 {[%clk 0:00:24]} 37. Nf4 {[%clk 0:01:39]}  Re7 {[%clk 0:00:17]} 38. Nd5 {[%clk 0:01:36]}  Ree2 {[%clk 0:00:17]} 39. Rxa7 {[%clk 0:01:35]}  Rg2+ {[%clk 0:00:17]} 40. Kf4 {[%clk 0:01:35]}  Rxa2 {[%clk 0:00:16]} 41. Rb7 {[%clk 0:01:34]}  Rh2 {[%clk 0:00:13]} 42. Nf6 {[%clk 0:01:35]}  Rxh4+ {[%clk 0:00:13]} 43. Kg3 {[%clk 0:01:35]}  Rh1 {[%clk 0:00:04]} 44. Rb8 {[%clk 0:01:35]}  Rg1+ {[%clk 0:00:04]} 45. Kf4 {[%clk 0:01:35]}  Rxg5 {[%clk 0:00:04]} 46. Kxg5 {[%clk 0:01:34]}  Rg2+ {[%clk 0:00:04]} 47. Ng4 {[%clk 0:01:34]}  f6+ {[%clk 0:00:02]} 48. Kf4 {[%clk 0:01:34]}  hxg4 {[%clk 0:00:01]} 49. fxg4 {[%clk 0:01:35]}  Rf2+ {[%clk 0:00:02]} 50. Ke3 {[%clk 0:01:34]}  Rb2 {[%clk 0:00:02]} 51. b4 {[%clk 0:01:35]}  f5 {[%clk 0:00:02]} 52. g5 {[%clk 0:01:34]}  Rb3+ {[%clk 0:00:02]} 53. Kf4 {[%clk 0:01:35]}  Rb1 {[%clk 0:00:03]} 54. Rb7+ {[%clk 0:01:35]}  Kf8 {[%clk 0:00:03]} 55. Ke5 {[%clk 0:01:36]}  Ke8 {[%clk 0:00:02]} 56. Kf6 {[%clk 0:01:36]}  f4 {[%clk 0:00:03]} 57. Kxg6 {[%clk 0:01:37]}  f3 {[%clk 0:00:02]} 58. Rf7 {[%clk 0:01:36]}  Rb3 {[%clk 0:00:01]} 59. Rf4 {[%clk 0:01:36]} 1-0


[Site "https://www.chess.com"]

[Event "Titled Tuesday Blitz June 07 Late 2022"]
[White "Livaic, Leon"]
[Black "Ezat, Mohamed"]
[WhiteFideId "14531534"]
[BlackFideId "10600906"]
[WhiteElo "2540"]
[BlackElo "2386"]
[Result "1-0"]
[Round "02"]
[TimeControl "180+1"]
[Date "2022.06.07"]
[WhiteClock "0:01:35"]
[BlackClock "0:00:44"]

1. e4 {[%clk 0:03:00]}  c6 {[%clk 0:02:59]} 2. d4 {[%clk 0:03:00]}  d5 {[%clk 0:02:59]} 3. Nc3 {[%clk 0:03:01]}  dxe4 {[%clk 0:02:59]} 4. Nxe4 {[%clk 0:03:02]}  Bf5 {[%clk 0:02:59]} 5. Ng3 {[%clk 0:03:02]}  Bg6 {[%clk 0:02:59]} 6. h4 {[%clk 0:03:02]}  h6 {[%clk 0:02:59]} 7. h5 {[%clk 0:03:02]}  Bh7 {[%clk 0:02:58]} 8. Nf3 {[%clk 0:03:03]}  e6 {[%clk 0:02:55]} 9. Bd3 {[%clk 0:03:04]}  Bxd3 {[%clk 0:02:54]} 10. Qxd3 {[%clk 0:03:04]}  Nf6 {[%clk 0:02:52]} 11. Bd2 {[%clk 0:03:05]}  Be7 {[%clk 0:02:49]} 12. O-O-O {[%clk 0:03:05]}  O-O {[%clk 0:02:49]} 13. Ne4 {[%clk 0:02:58]}  c5 {[%clk 0:02:43]} 14. g4 {[%clk 0:02:42]}  Nxe4 {[%clk 0:01:56]} 15. Qxe4 {[%clk 0:02:42]}  Qd5 {[%clk 0:01:55]} 16. Qxd5 {[%clk 0:02:42]}  exd5 {[%clk 0:01:55]} 17. g5 {[%clk 0:02:30]}  hxg5 {[%clk 0:01:54]} 18. Bxg5 {[%clk 0:02:30]}  Bxg5+ {[%clk 0:01:50]} 19. Nxg5 {[%clk 0:02:31]}  c4 {[%clk 0:01:48]} 20. Rdg1 {[%clk 0:02:18]}  Nc6 {[%clk 0:01:46]} 21. Rg4 {[%clk 0:02:19]}  Rae8 {[%clk 0:01:44]} 22. Rhg1 {[%clk 0:02:16]}  Re7 {[%clk 0:01:37]} 23. Nf3 {[%clk 0:02:13]}  f6 {[%clk 0:01:34]} 24. Nh4 {[%clk 0:02:05]}  Rfe8 {[%clk 0:01:33]} 25. Nf5 {[%clk 0:01:58]}  Re1+ {[%clk 0:01:32]} 26. Rxe1 {[%clk 0:01:54]}  Rxe1+ {[%clk 0:01:31]} 27. Kd2 {[%clk 0:01:54]}  Re4 {[%clk 0:01:18]} 28. Rxg7+ {[%clk 0:01:38]}  Kf8 {[%clk 0:01:17]} 29. h6 {[%clk 0:01:39]}  Rf4 {[%clk 0:00:53]} 30. h7 {[%clk 0:01:38]}  Rxf2+ {[%clk 0:00:44]} 31. Ke3 {[%clk 0:01:35]}  Rh2 {[%clk 0:00:44]} 32. Rg8+ {[%clk 0:01:35]} 1-0


[Site "https://www.chess.com"]

[Event "Titled Tuesday Blitz June 07 Late 2022"]
[White "Manukian, Artak"]
[Black "Tahbaz, Arash"]
[WhiteFideId "13301373"]
[BlackFideId "12528846"]
[WhiteElo "2566"]
[BlackElo "2389"]
[Result "0-1"]
[Round "02"]
[TimeControl "180+1"]
[Date "2022.06.07"]
[WhiteClock "0:01:12"]
[BlackClock "0:01:57"]

1. e4 {[%clk 0:03:00]}  g6 {[%clk 0:02:59]} 2. d4 {[%clk 0:03:00]}  Bg7 {[%clk 0:02:58]} 3. c4 {[%clk 0:03:00]}  d6 {[%clk 0:02:58]} 4. Nc3 {[%clk 0:03:01]}  e5 {[%clk 0:02:58]} 5. dxe5 {[%clk 0:02:59]}  dxe5 {[%clk 0:02:59]} 6. Qxd8+ {[%clk 0:02:59]}  Kxd8 {[%clk 0:02:59]} 7. Nf3 {[%clk 0:02:58]}  Nc6 {[%clk 0:02:56]} 8. Bg5+ {[%clk 0:02:54]}  f6 {[%clk 0:02:55]} 9. Be3 {[%clk 0:02:54]}  Bd7 {[%clk 0:02:56]} 10. O-O-O {[%clk 0:02:54]}  Nge7 {[%clk 0:02:55]} 11. Nd5 {[%clk 0:02:50]}  Kc8 {[%clk 0:02:54]} 12. h3 {[%clk 0:02:45]}  Re8 {[%clk 0:02:50]} 13. g4 {[%clk 0:02:36]}  Nd8 {[%clk 0:02:50]} 14. Nxe7+ {[%clk 0:02:35]}  Rxe7 {[%clk 0:02:51]} 15. Bc5 {[%clk 0:02:35]}  Re8 {[%clk 0:02:51]} 16. Be3 {[%clk 0:02:18]}  Ne6 {[%clk 0:02:50]} 17. Kc2 {[%clk 0:02:17]}  Bc6 {[%clk 0:02:50]} 18. Bd3 {[%clk 0:02:16]}  b6 {[%clk 0:02:34]} 19. Nd2 {[%clk 0:02:15]}  a5 {[%clk 0:02:33]} 20. f3 {[%clk 0:02:15]}  Kb7 {[%clk 0:02:31]} 21. Nb1 {[%clk 0:02:15]}  Bf8 {[%clk 0:02:30]} 22. Nc3 {[%clk 0:02:15]}  Bc5 {[%clk 0:02:30]} 23. Bxc5 {[%clk 0:02:13]}  bxc5 {[%clk 0:02:30]} 24. Ne2 {[%clk 0:02:08]}  Rad8 {[%clk 0:02:28]} 25. Kc1 {[%clk 0:02:03]}  Kb6 {[%clk 0:02:18]} 26. Bc2 {[%clk 0:02:03]}  Nd4 {[%clk 0:02:19]} 27. Nxd4 {[%clk 0:02:02]}  cxd4 {[%clk 0:02:20]} 28. Bd3 {[%clk 0:01:55]}  Kc5 {[%clk 0:02:20]} 29. h4 {[%clk 0:01:54]}  Bd7 {[%clk 0:02:15]} 30. h5 {[%clk 0:01:54]}  g5 {[%clk 0:02:15]} 31. Rd2 {[%clk 0:01:50]}  Rb8 {[%clk 0:02:15]} 32. Rhh2 {[%clk 0:01:48]}  Rb4 {[%clk 0:02:16]} 33. b3 {[%clk 0:01:46]}  a4 {[%clk 0:02:14]} 34. Rb2 {[%clk 0:01:46]}  Reb8 {[%clk 0:02:13]} 35. Bc2 {[%clk 0:01:44]}  axb3 {[%clk 0:02:07]} 36. axb3 {[%clk 0:01:27]}  Ba4 {[%clk 0:02:05]} 37. Ra2 {[%clk 0:01:25]}  Bxb3 {[%clk 0:02:04]} 38. Bxb3 {[%clk 0:01:25]}  Rxb3 {[%clk 0:02:05]} 39. Ra5+ {[%clk 0:01:25]}  Kxc4 {[%clk 0:02:03]} 40. Rc2+ {[%clk 0:01:23]}  Rc3 {[%clk 0:02:01]} 41. Ra7 {[%clk 0:01:18]}  c5 {[%clk 0:01:59]} 42. Rxh7 {[%clk 0:01:17]}  Rxc2+ {[%clk 0:01:59]} 43. Kxc2 {[%clk 0:01:17]}  d3+ {[%clk 0:02:00]} 44. Kd2 {[%clk 0:01:13]}  Rb2+ {[%clk 0:02:00]} 45. Ke1 {[%clk 0:01:12]}  Kc3 {[%clk 0:01:57]} 46. Rd7 {[%clk 0:01:12]}  Rb1+ {[%clk 0:01:56]} 47. Kf2 {[%clk 0:01:12]}  d2 {[%clk 0:01:57]} 0-1


[Site "https://www.chess.com"]

[Event "Titled Tuesday Blitz June 07 Late 2022"]
[White "Matlakov, Maxim"]
[Black "Larino Nieto, David"]
[WhiteFideId "4168003"]
[BlackFideId "2256444"]
[WhiteElo "2669"]
[BlackElo "2532"]
[Result "0-1"]
[Round "02"]
[TimeControl "180+1"]
[Date "2022.06.07"]
[WhiteClock "0:00:08"]
[BlackClock "0:00:36"]

1. d4 {[%clk 0:03:00]}  e6 {[%clk 0:02:59]} 2. Nf3 {[%clk 0:02:56]}  b6 {[%clk 0:02:59]} 3. e4 {[%clk 0:02:55]}  Bb7 {[%clk 0:02:59]} 4. Bd3 {[%clk 0:02:54]}  d6 {[%clk 0:02:59]} 5. O-O {[%clk 0:02:52]}  Nd7 {[%clk 0:03:00]} 6. c4 {[%clk 0:02:52]}  h6 {[%clk 0:03:00]} 7. Nc3 {[%clk 0:02:52]}  g5 {[%clk 0:03:01]} 8. Be3 {[%clk 0:02:48]}  Bg7 {[%clk 0:03:01]} 9. h3 {[%clk 0:02:41]}  Ne7 {[%clk 0:02:59]} 10. Re1 {[%clk 0:02:39]}  Ng6 {[%clk 0:02:58]} 11. b4 {[%clk 0:02:36]}  c5 {[%clk 0:02:52]} 12. Nb5 {[%clk 0:02:29]}  Qb8 {[%clk 0:02:40]} 13. bxc5 {[%clk 0:01:47]}  dxc5 {[%clk 0:02:39]} 14. e5 {[%clk 0:01:46]}  O-O {[%clk 0:02:28]} 15. Nxg5 {[%clk 0:01:07]}  hxg5 {[%clk 0:02:24]} 16. Bxg5 {[%clk 0:01:08]}  cxd4 {[%clk 0:02:19]} 17. f4 {[%clk 0:01:05]}  Nc5 {[%clk 0:01:55]} 18. Nd6 {[%clk 0:01:05]}  Qc7 {[%clk 0:01:30]} 19. h4 {[%clk 0:01:04]}  Nxd3 {[%clk 0:01:19]} 20. Qxd3 {[%clk 0:01:05]}  Nh8 {[%clk 0:01:06]} 21. h5 {[%clk 0:01:01]}  f6 {[%clk 0:01:05]} 22. exf6 {[%clk 0:00:52]}  Qxd6 {[%clk 0:01:00]} 23. fxg7 {[%clk 0:00:52]}  Kxg7 {[%clk 0:01:01]} 24. Re5 {[%clk 0:00:47]}  Rf5 {[%clk 0:00:53]} 25. Rae1 {[%clk 0:00:43]}  Qc6 {[%clk 0:00:46]} 26. Qg3 {[%clk 0:00:40]}  Kf7 {[%clk 0:00:42]} 27. Rxf5+ {[%clk 0:00:36]}  exf5 {[%clk 0:00:40]} 28. Re7+ {[%clk 0:00:37]}  Kf8 {[%clk 0:00:41]} 29. h6 {[%clk 0:00:17]}  Re8 {[%clk 0:00:39]} 30. Rxe8+ {[%clk 0:00:14]}  Kxe8 {[%clk 0:00:40]} 31. Qe1+ {[%clk 0:00:12]}  Qe4 {[%clk 0:00:37]} 32. Qd1 {[%clk 0:00:08]}  Qxg2# {[%clk 0:00:36]} 0-1


[Site "https://www.chess.com"]